bitfinex/quotes_BTCUSD_20250418
["timestamp","ask_amount","ask_price","bid_price","bid_amount"]
[1744996255481,0.24813031,84352.0,84351.0,0.47104]
[1744996256788,0.01102865,84352.0,84351.0,0.70814448]
[1744996260165,0.24813031,84352.0,84351.0,0.47104]
[1744996260747,0.01102865,84352.0,84351.0,0.47104]
[1744996261378,0.24813031,84352.0,84351.0,0.47104]
[1744996261573,0.24913031,84352.0,84351.0,0.47104]
[1744996264876,0.01202865,84352.0,84351.0,0.47104]
[1744996265570,0.01202865,84352.0,84351.0,0.13104]
[1744996267523,0.24913031,84352.0,84351.0,0.47104]
[1744996275301,0.01202865,84352.0,84351.0,0.70814448]
[1744996275476,0.001,84352.0,84351.0,0.70814448]
[1744996277554,0.01204239,84352.0,84351.0,0.70814448]
[1744996278294,0.01204239,84352.0,84351.0,0.70804961]
[1744996279465,0.001,84352.0,84351.0,0.70804961]
[1744996283434,0.001,84352.0,84351.0,0.70795434]
[1744996287819,0.001,84352.0,84351.0,0.82740225]
[1744996294234,0.001,84352.0,84351.0,0.8419431]
[1744996297405,0.001,84352.0,84351.0,1.2533431]
[1744996305797,0.001,84352.0,84351.0,0.8419431]
[1744996307871,0.001,84352.0,84351.0,0.73341019]
[1744996311222,0.00045158,84361.0,84360.0,0.23707918]
[1744996311422,0.00045158,84361.0,84360.0,0.35652709]
[1744996311552,0.01253219,84361.0,84360.0,0.35652709]
[1744996311745,0.00145158,84361.0,84360.0,0.35652709]
[1744996313014,0.00145158,84361.0,84360.0,0.69652709]
[1744996316567,0.00145158,84361.0,84360.0,0.82752709]
[1744996321603,0.000842,84364.0,84363.0,0.5916116]
[1744996321803,0.000842,84364.0,84363.0,0.71105951]
[1744996324253,0.00089549,84364.0,84363.0,0.71105951]
[1744996327803,0.000842,84366.0,84365.0,0.59160598]
[1744996328100,0.000842,84366.0,84365.0,0.71105389]
[1744996333372,0.000842,84367.0,84366.0,0.59160317]
[1744996333567,0.000842,84367.0,84366.0,0.71105108]
[1744996335774,0.000842,84367.0,84366.0,1.92957108]
[1744996347943,0.000842,84367.0,84366.0,1.91503023]
[1744996348111,0.049442,84367.0,84366.0,2.04599023]
[1744996348703,0.049442,84367.0,84366.0,1.91503023]
[1744996348900,0.049442,84367.0,84366.0,2.04599023]
[1744996349890,0.04056367,84367.0,84366.0,2.04599023]
[1744996352517,0.04056367,84367.0,84366.0,0.82747023]
[1744996359688,0.0048418,84369.0,84368.0,0.5770567]
[1744996359881,0.0048418,84369.0,84368.0,0.69650461]
[1744996364978,0.0048418,84369.0,84368.0,0.71104546]
[1744996367749,0.0048418,84369.0,84368.0,1.12244546]
[1744996378678,0.000842,84373.0,84370.0,0.59159193]
[1744996378886,0.000842,84373.0,84370.0,0.71103984]
[1744996379576,0.000842,84373.0,84370.0,1.12243984]
[1744996381004,0.000842,84373.0,84370.0,1.24001899]
[1744996381827,0.000842,84373.0,84370.0,1.25455984]
[1744996400459,0.0463,84382.0,84381.0,0.57702018]
[1744996400679,0.000842,84384.0,84383.0,0.57701456]
[1744996400883,0.000842,84384.0,84383.0,0.69646247]
[1744996401039,0.00188712,84384.0,84383.0,0.69646247]
[1744996403187,0.00188712,84384.0,84383.0,0.5172548]
[1744996404114,0.00188712,84384.0,84383.0,0.52901052]
[1744996405439,0.00188712,84384.0,84383.0,0.66317052]
[1744996421635,0.00188712,84384.0,84383.0,0.43668126]
[1744996422109,0.00188712,84384.0,84383.0,0.67369582]
[1744996427717,0.34373284,84384.0,84383.0,0.31723335]
[1744996430658,0.10672109,84384.0,84383.0,0.31723335]
[1744996431563,0.10672109,84384.0,84383.0,0.55424791]
[1744996431830,0.05962109,84384.0,84383.0,0.55424791]
[1744996432309,0.01172109,84384.0,84383.0,0.55424791]
[1744996432829,0.05982109,84384.0,84383.0,0.55424791]
[1744996433543,0.10642109,84384.0,84383.0,0.55424791]
[1744996435015,0.09658712,84384.0,84383.0,0.55424791]
[1744996435557,0.10640903,84384.0,84383.0,0.55424791]
[1744996440345,0.09658712,84384.0,84383.0,0.55424791]
[1744996440730,0.10638617,84384.0,84383.0,0.55424791]
[1744996441272,0.34339792,84384.0,84383.0,0.14591572]
[1744996441675,0.34339792,84384.0,84383.0,0.01175572]
[1744996442077,0.23701737,84382.0,84381.0,0.47316]
[1744996442482,0.24681647,84382.0,84381.0,0.47316]
[1744996445462,0.24681647,84382.0,84381.0,0.48516739]
[1744996446205,0.0097991,84382.0,84381.0,0.72218757]
[1744996446418,0.24681647,84382.0,84381.0,0.48516739]
[1744996473684,0.0097991,84382.0,84381.0,0.48516739]
[1744996474081,0.24681647,84382.0,84381.0,0.48516739]
[1744996489839,0.24681647,84382.0,84381.0,0.14436739]
[1744996492983,0.24681647,84382.0,84381.0,0.48436739]
[1744996501275,0.29501647,84382.0,84381.0,0.35200739]
[1744996508089,0.29501647,84382.0,84381.0,0.13725949]
[1744996508293,0.23702018,84381.0,84380.0,0.13236]
[1744996508798,0.24676241,84381.0,84380.0,0.13236]
[1744996509096,0.24676241,84381.0,84380.0,0.14441165]
[1744996510514,0.24676241,84381.0,84380.0,0.01205165]
[1744996510707,0.2370258,84379.0,84378.0,0.13168]
[1744996511312,0.24676803,84379.0,84378.0,0.13168]
[1744996511516,0.24676803,84379.0,84378.0,0.14390158]
[1744996513328,0.00974223,84379.0,84378.0,0.14390158]
[1744996513533,0.23702044,84381.0,84378.0,0.39278161]
[1744996513736,0.00973962,84379.0,84378.0,0.39278161]
[1744996513892,0.23702044,84381.0,84378.0,0.39278161]
[1744996514279,0.00088712,84384.0,84383.0,0.23701456]
[1744996517446,0.00078787,84384.0,84383.0,0.23701456]
[1744996520480,0.00078787,84384.0,84382.0,0.23701737]
[1744996520743,0.00078787,84384.0,84381.0,0.24887064]
[1744996521205,0.23780176,84384.0,84381.0,0.24887064]
[1744996522161,0.23780176,84384.0,84382.0,0.23701681]
[1744996523629,0.0097685,84383.0,84381.0,0.24887064]
[1744996525631,0.24678363,84383.0,84381.0,0.24887064]
[1744996525796,0.24678363,84383.0,84381.0,0.011851]
[1744996527353,0.23701737,84382.0,84381.0,0.34]
[1744996527760,0.24678587,84382.0,84381.0,0.47168]
[1744996528419,0.0097685,84382.0,84381.0,0.47168]
[1744996528815,0.24678587,84382.0,84381.0,0.47168]
[1744996537292,0.0097685,84382.0,84381.0,0.70870018]
[1744996537645,0.00976333,84382.0,84381.0,0.70870018]
[1744996538520,0.2467807,84382.0,84381.0,0.47168]
[1744996539243,0.00976333,84382.0,84381.0,0.70870018]
[1744996539797,0.00976333,84382.0,84381.0,0.72055118]
[1744996539937,0.00078787,84384.0,84383.0,0.34]
[1744996540136,0.00078787,84384.0,84383.0,0.57701456]
[1744996540337,0.00078787,84384.0,84383.0,0.34]
[1744996541201,0.00078787,84384.0,84383.0,0.47168]
[1744996543151,0.23779962,84384.0,84383.0,0.47168]
[1744996545636,0.00078787,84384.0,84383.0,0.70869456]
[1744996545814,0.00078787,84384.0,84383.0,0.47168]
[1744996546868,0.23779962,84384.0,84383.0,0.47168]
[1744996548273,0.00078787,84384.0,84383.0,0.47168]
[1744996549492,0.00078787,84384.0,84383.0,0.70869456]
[1744996549692,0.00078787,84384.0,84383.0,0.47168]
[1744996549921,0.00078787,84384.0,84383.0,0.70869456]
[1744996550441,0.23779962,84384.0,84383.0,0.47168]
[1744996550646,0.00078787,84384.0,84383.0,0.47168]
[1744996550962,0.00078787,84384.0,84383.0,0.82814247]
[1744996551163,0.00078787,84384.0,84383.0,0.89188332]
[1744996551390,0.00078787,84384.0,84383.0,0.93728332]
[1744996551586,0.00078787,84384.0,84383.0,0.93828332]
[1744996554260,0.000842,84405.0,84388.0,0.59154137]
[1744996554570,0.000842,84405.0,84388.0,0.75968928]
[1744996558270,0.000842,84405.0,84388.0,0.76875751]
[1744996561700,0.01268963,84405.0,84388.0,0.76975751]
[1744996561868,0.000842,84405.0,84388.0,0.76975751]
[1744996562655,0.000842,84405.0,84388.0,0.52773228]
[1744996563051,0.000842,84405.0,84388.0,0.7647328]
[1744996564452,0.000842,84405.0,84388.0,1.1761328]
[1744996564766,0.01184862,84398.0,84388.0,1.11289195]
[1744996564964,0.000842,84401.0,84388.0,1.11289195]
[1744996565171,0.000842,84401.0,84388.0,1.24429195]
[1744996577182,0.0451,84400.0,84388.0,1.24429195]
[1744996582530,0.0451,84399.0,84388.0,1.24429195]
[1744996589139,0.0462,84393.0,84388.0,1.23522372]
[1744996589251,0.28969771,84389.0,84388.0,0.87845529]
[1744996589449,0.33589771,84389.0,84388.0,0.87845529]
[1744996589904,0.34585171,84389.0,84388.0,0.87845529]
[1744996590120,0.34585171,84389.0,84388.0,0.46705529]
[1744996590602,0.34585171,84389.0,84388.0,0.47208]
[1744996596075,0.108854,84389.0,84388.0,0.47208]
[1744996596233,0.108854,84389.0,84388.0,0.70908052]
[1744996598697,0.0989,84389.0,84388.0,0.70908052]
[1744996600614,0.10881862,84389.0,84388.0,0.70908052]
[1744996610295,0.0989,84389.0,84388.0,0.70908052]
[1744996610596,0.10881862,84389.0,84388.0,0.70908052]
[1744996611332,0.10781862,84389.0,84388.0,0.70808052]
[1744996612387,0.06161862,84389.0,84388.0,0.70808052]
[1744996612987,0.0517,84389.0,84388.0,0.70808052]
[1744996613207,0.06161862,84389.0,84388.0,0.70808052]
[1744996620323,0.34871633,84389.0,84388.0,0.13108]
[1744996620458,0.0491,84382.0,84380.0,0.23702084]
[1744996620658,0.0491,84382.0,84381.0,0.36810018]
[1744996621232,0.0491,84382.0,84381.0,0.70810018]
[1744996621534,0.0491,84382.0,84381.0,0.47108]
[1744996621730,0.0491,84382.0,84381.0,0.13108]
[1744996622488,0.28611737,84382.0,84381.0,0.13108]
[1744996628369,0.29604663,84382.0,84381.0,0.13108]
[1744996630474,0.05902926,84382.0,84381.0,0.13108]
[1744996630701,0.05902926,84382.0,84381.0,0.47108]
[1744996630822,0.00992926,84382.0,84381.0,0.47108]
[1744996635289,0.00992926,84382.0,84381.0,0.70810018]
[1744996636661,0.23701258,84384.0,84382.0,0.34]
[1744996637922,0.23701456,84383.0,84382.0,0.34]
[1744996638180,0.23701258,84384.0,84382.0,0.34]
[1744996639217,0.23701456,84383.0,84382.0,0.34]
[1744996643454,0.24692045,84383.0,84382.0,0.34]
[1744996647511,0.00990589,84383.0,84382.0,0.34]
[1744996647918,0.23701175,84384.0,84382.0,0.34]
[1744996648128,0.24693099,84383.0,84382.0,0.34]
[1744996651263,0.24693099,84383.0,84382.0,0.13112]
[1744996651488,0.24693099,84383.0,84382.0,0.47112]
[1744996669626,0.24693099,84383.0,84382.0,0.34]
[1744996669828,0.29453099,84383.0,84382.0,0.34]
[1744996670033,0.34253099,84383.0,84382.0,0.34]
[1744996670584,0.2370258,84379.0,84378.0,0.01222158]
[1744996670802,0.05945213,84373.0,84372.0,0.13108]
[1744996671102,0.05945213,84373.0,84372.0,0.47108]
[1744996671103,0.29649534,84373.0,84372.0,0.47108]
[1744996671504,0.30639971,84373.0,84372.0,0.48563493]
[1744996674387,0.35289971,84373.0,84372.0,0.01455493]
[1744996674562,0.23704827,84371.0,84370.0,4.512e-05]
[1744996674967,0.24688808,84371.0,84370.0,4.512e-05]
[1744996675972,0.24688808,84371.0,84370.0,0.01417858]
[1744996700012,0.29578808,84371.0,84370.0,4.512e-05]
[1744996700149,0.46113599,84371.0,84370.0,4.512e-05]
[1744996700974,0.46113599,84371.0,84370.0,1e-08]
[1744996730067,0.46213599,84371.0,84370.0,1e-08]
[1744996730238,0.23710448,84351.0,84350.0,0.14301805]
[1744996730386,0.23710729,84350.0,84349.0,0.0008418]
[1744996730586,0.23710729,84350.0,84349.0,0.0018418]
[1744996730981,0.24671046,84350.0,84349.0,0.0018418]
[1744996731191,0.24671046,84350.0,84349.0,0.0008418]
[1744996731401,0.24671046,84350.0,84349.0,0.0018418]
[1744996731758,0.24671046,84350.0,84349.0,0.01556818]
[1744996740093,0.22480622,84350.0,84349.0,0.01556818]
[1744996749721,0.00960317,84350.0,84349.0,0.59267828]
[1744996749929,0.23710116,84353.0,84349.0,0.60453378]
[1744996750146,0.2370931,84356.0,84353.0,0.24895105]
[1744996750351,0.23709685,84354.0,84351.0,0.24895738]
[1744996751594,0.23709917,84353.0,84351.0,0.24895738]
[1744996752171,0.23709917,84353.0,84351.0,0.01185522]
[1744996752416,0.23710166,84352.0,84349.0,0.65003216]
[1744996752862,0.23710453,84351.0,84349.0,0.65003216]
[1744996753504,0.23710453,84351.0,84349.0,0.41292368]
[1744996754401,0.23710453,84351.0,84349.0,0.65003376]
[1744996754598,0.23710453,84351.0,84349.0,0.41292368]
[1744996754807,0.23710453,84351.0,84349.0,0.40106818]
[1744996755505,0.23710453,84351.0,84349.0,0.35556818]
[1744996756066,0.23710729,84350.0,84349.0,0.35556818]
[1744996763346,0.2467164,84350.0,84349.0,0.35556818]
[1744996789443,0.3412164,84350.0,84349.0,0.35556818]
[1744996789651,0.3422164,84350.0,84349.0,0.0018418]
[1744996789821,0.46166431,84350.0,84349.0,0.0018418]
[1744996791328,0.46166431,84350.0,84349.0,0.0008418]
[1744996796729,0.3422164,84350.0,84349.0,0.0008418]
[1744996799093,0.23710453,84351.0,84350.0,2.6577836]
[1744996806783,0.24535542,84351.0,84350.0,2.6577836]
[1744996813619,0.24535542,84351.0,84350.0,2.6587836]
[1744996824913,0.24518529,84351.0,84350.0,2.6587836]
[1744996843674,0.24518529,84351.0,84350.0,2.6597836]
[1744996851339,0.24518529,84351.0,84350.0,2.6587836]
[1744996878148,0.24518529,84351.0,84350.0,2.7058836]
[1744996878149,0.00825089,84351.0,84350.0,2.7058836]
[1744996878547,0.2371017,84352.0,84350.0,2.7058836]
[1744996878923,0.24413048,84351.0,84350.0,2.7058836]
[1744996879508,0.24413048,84351.0,84350.0,2.54807098]
[1744996887904,0.24413048,84351.0,84350.0,2.30681357]
[1744996889529,0.24413048,84351.0,84350.0,2.26071357]
[1744996891771,0.24413048,84351.0,84350.0,2.26171357]
[1744996895811,0.007026,84351.0,84350.0,2.26171357]
[1744996897878,0.24413048,84351.0,84350.0,2.26171357]
[1744996903139,0.24413048,84351.0,84350.0,2.11109975]
[1744996911209,0.24413048,84351.0,84350.0,2.10909975]
[1744996925249,0.36357839,84351.0,84350.0,2.10909975]
[1744996932589,0.36357839,84351.0,84350.0,1.93777078]
[1744996934163,0.41297839,84351.0,84350.0,1.93777078]
[1744996936696,0.46087839,84351.0,84350.0,1.93777078]
[1744996939161,0.46187839,84351.0,84350.0,0.67124139]
[1744996953944,0.41247839,84351.0,84350.0,0.67124139]
[1744996963870,0.36457839,84351.0,84350.0,0.67224139]
[1744996971315,0.36357839,84351.0,84350.0,0.67124139]
[1744996976425,0.36301875,84351.0,84350.0,0.67124139]
[1744996991614,0.36301875,84351.0,84350.0,0.71914139]
[1744996992386,0.36301875,84351.0,84350.0,0.67224139]
[1744997011861,0.36301875,84351.0,84350.0,0.67324139]
[1744997012866,0.36301875,84351.0,84350.0,0.43454276]
[1744997031209,0.36301875,84351.0,84350.0,0.43254276]
[1744997032567,0.36301875,84351.0,84350.0,0.47934276]
[1744997034399,0.36301875,84351.0,84350.0,0.43354276]
[1744997034832,0.36301875,84351.0,84350.0,0.20887214]
[1744997041571,0.36301875,84351.0,84350.0,0.20787214]
[1744997058995,0.35655239,84351.0,84350.0,0.20787214]
[1744997071802,0.35655239,84351.0,84350.0,0.20887214]
[1744997075132,0.01185691,84339.0,84333.0,0.000421]
[1744997075341,0.23714383,84337.0,84333.0,0.000421]
[1744997075542,0.35659174,84337.0,84333.0,0.000421]
[1744997076641,0.35659174,84337.0,84336.0,0.00129358]
[1744997077352,0.36910514,84337.0,84336.0,0.00129358]
[1744997081898,0.23714665,84336.0,84333.0,0.000421]
[1744997082098,0.23715227,84334.0,84333.0,0.000421]
[1744997082281,0.35660018,84334.0,84333.0,0.00047449]
[1744997091384,0.35760018,84334.0,84333.0,0.00047449]
[1744997096377,0.40460018,84334.0,84333.0,0.00047449]
[1744997096611,0.23715508,84333.0,84332.0,0.0004209]
[1744997096754,0.35660299,84333.0,84332.0,0.0004209]
[1744997100373,0.36550005,84333.0,84332.0,0.0004209]
[1744997101594,0.36750005,84333.0,84332.0,0.0004209]
[1744997119078,0.37413431,84333.0,84332.0,0.0004209]
[1744997131612,0.37513431,84333.0,84332.0,0.0004209]
[1744997133337,0.23721697,84311.0,84310.0,0.18404698]
[1744997133493,0.23721978,84310.0,84306.0,0.34]
[1744997133682,0.23721978,84310.0,84309.0,0.00104508]
[1744997135634,0.23721978,84310.0,84309.0,0.01341743]
[1744997136443,0.23721978,84310.0,84309.0,0.05951743]
[1744997151295,0.23721978,84310.0,84309.0,0.05851743]
[1744997154452,0.23721978,84310.0,84309.0,0.01241743]
[1744997169402,0.23721978,84310.0,84309.0,4.508e-05]
[1744997169403,0.23821978,84310.0,84309.0,4.508e-05]
[1744997171293,0.35766769,84310.0,84309.0,4.508e-05]
[1744997188967,0.40506769,84310.0,84309.0,4.508e-05]
[1744997189296,0.45116769,84310.0,84309.0,1e-08]
[1744997199001,0.46018851,84310.0,84309.0,1e-08]
[1744997199631,0.46118851,84310.0,84309.0,1e-08]
[1744997201266,0.47572936,84310.0,84309.0,1e-08]
[1744997201474,0.47572936,84310.0,84291.0,0.004]
[1744997201475,0.33065073,84299.0,84298.0,0.00026331]
[1744997201651,0.45009864,84299.0,84298.0,0.00030847]
[1744997202223,0.46217564,84299.0,84298.0,0.00030847]
[1744997209213,0.45009864,84299.0,84298.0,0.00030847]
[1744997209490,0.45400346,84299.0,84298.0,0.00030847]
[1744997211428,0.45500346,84299.0,84298.0,0.00030847]
[1744997219706,0.36160346,84299.0,84298.0,0.00030847]
[1744997221845,0.36060346,84299.0,84298.0,0.00030847]
[1744997251842,0.24115555,84299.0,84298.0,0.00030847]
[1744997255690,0.00390482,84299.0,84298.0,0.23856202]
[1744997256047,0.00390482,84299.0,84298.0,0.28566202]
[1744997268985,0.00390482,84299.0,84298.0,0.23856202]
[1744997272291,0.00390482,84299.0,84298.0,0.001]
[1744997273089,0.00390482,84299.0,84298.0,0.23825355]
[1744997281644,0.00390482,84299.0,84298.0,0.23725355]
[1744997282853,0.00390482,84299.0,84298.0,0.23825355]
[1744997295527,0.00390482,84299.0,84298.0,0.28605355]
[1744997302683,0.00390482,84299.0,84298.0,0.23825355]
[1744997307088,0.00390482,84299.0,84298.0,0.57825355]
[1744997315363,0.00390482,84299.0,84298.0,0.69770146]
[1744997315521,0.00390482,84299.0,84298.0,0.69870146]
[1744997315867,0.00390482,84299.0,84298.0,0.74610146]
[1744997331188,0.00390482,84299.0,84298.0,0.74510146]
[1744997333070,0.00390482,84299.0,84298.0,0.69770146]
[1744997341758,0.00390482,84299.0,84298.0,0.69670146]
[1744997345229,0.00390482,84299.0,84298.0,0.69770146]
[1744997353063,0.0469,84318.0,84315.0,0.01186028]
[1744997353290,0.0469,84318.0,84317.0,0.23720009]
[1744997353472,0.0479,84318.0,84317.0,0.23720009]
[1744997363481,0.0479,84318.0,84316.0,0.34]
[1744997363482,0.28509727,84318.0,84316.0,0.34]
[1744997363682,0.0453,84317.0,84314.0,0.23720351]
[1744997363887,0.0453,84317.0,84315.0,0.2372057]
[1744997364224,0.0453,84317.0,84314.0,0.24906393]
[1744997364703,0.28250145,84317.0,84315.0,0.23720502]
[1744997365312,0.0453,84317.0,84316.0,0.2372029]
[1744997365539,0.0453,84317.0,84315.0,0.23720502]
[1744997367353,0.0453,84317.0,84316.0,0.2372029]
[1744997379330,0.0453,84317.0,84315.0,0.23720502]
[1744997379528,0.0453,84317.0,84316.0,0.2372029]
[1744997380508,0.0453,84317.0,84315.0,0.23720502]
[1744997382132,0.0453,84317.0,84316.0,0.2372029]
[1744997399023,0.0453,84317.0,84315.0,0.23720502]
[1744997399265,0.0453,84317.0,84316.0,0.2372029]
[1744997400282,0.0453,84317.0,84314.0,0.24906418]
[1744997400497,0.0453,84317.0,84314.0,0.01186042]
[1744997401289,0.0453,84317.0,84316.0,0.2372029]
[1744997402601,0.0453,84317.0,84315.0,0.23720571]
[1744997402808,0.0453,84317.0,84316.0,0.2372029]
[1744997413095,0.0453,84317.0,84315.0,0.23720571]
[1744997413394,0.0453,84317.0,84316.0,0.2372029]
[1744997417851,0.04901413,84317.0,84316.0,0.2372029]
[1744997431324,0.00371413,84317.0,84316.0,0.2372029]
[1744997450669,0.24091422,84317.0,84315.0,0.23720571]
[1744997450924,0.24091422,84317.0,84300.0,0.0476]
[1744997450925,0.01186141,84307.0,84302.0,0.14944828]
[1744997451162,0.2372335,84306.0,84303.0,0.34]
[1744997451391,0.23723666,84304.0,84303.0,0.34]
[1744997452046,0.23723948,84303.0,84302.0,0.35852828]
[1744997452391,0.23723666,84304.0,84302.0,0.35852828]
[1744997452728,0.24281508,84303.0,84302.0,0.35852828]
[1744997455933,0.24281508,84303.0,84302.0,0.01852828]
[1744997470471,0.24281508,84303.0,84302.0,0.35852828]
[1744997470673,0.0055756,84303.0,84302.0,0.59577057]
[1744997470879,0.0055756,84303.0,84302.0,0.35852828]
[1744997471037,0.23723872,84304.0,84302.0,0.35852828]
[1744997471385,0.00553893,84303.0,84302.0,0.35852828]
[1744997474534,0.00553893,84303.0,84302.0,0.59577057]
[1744997475047,0.2372335,84306.0,84304.0,0.34]
[1744997479263,0.00555432,84305.0,84304.0,0.34]
[1744997482908,0.00555432,84305.0,84304.0,0.57723666]
[1744997489004,0.28313032,84307.0,84304.0,0.58909849]
[1744997489227,0.00554921,84306.0,84304.0,0.58909849]
[1744997490002,0.2427815,84306.0,84304.0,0.58909849]
[1744997490668,0.00554921,84306.0,84304.0,0.58909849]
[1744997493895,0.00554921,84306.0,84305.0,0.57723385]
[1744997494214,0.23722169,84310.0,84308.0,0.237225]
[1744997494442,0.24277228,84309.0,84307.0,0.2490891]
[1744997495047,0.24277228,84309.0,84306.0,0.24909217]
[1744997495448,0.00554921,84309.0,84305.0,0.34]
[1744997495656,0.23722541,84308.0,84306.0,0.2372305]
[1744997495871,0.23722822,84307.0,84305.0,0.58909374]
[1744997496082,0.23722541,84309.0,84306.0,0.24909258]
[1744997497351,0.23722541,84309.0,84307.0,0.2372275]
[1744997497603,0.23722541,84309.0,84306.0,0.24909258]
[1744997501017,0.23722373,84309.0,84307.0,0.24908906]
[1744997501612,0.23722373,84309.0,84307.0,0.01186141]
[1744997503459,0.23722373,84309.0,84307.0,0.24908926]
[1744997504215,0.23722373,84309.0,84307.0,0.01186141]
[1744997504417,0.23722373,84309.0,84306.0,0.24909258]
[1744997504622,0.23722081,84310.0,84308.0,0.01186127]
[1744997504842,0.23722081,84310.0,84307.0,0.2490873]
[1744997504843,0.23722259,84309.0,84307.0,0.2490873]
[1744997505398,0.23722338,84309.0,84307.0,0.2490873]
[1744997505891,0.24908653,84309.0,84305.0,0.34]
[1744997506096,0.23722541,84308.0,84306.0,0.24909198]
[1744997506813,0.23722259,84309.0,84306.0,0.24909198]
[1744997509417,0.00557096,84308.0,84306.0,0.24909198]
[1744997510977,0.24279731,84308.0,84306.0,0.24909198]
[1744997520972,0.00557096,84308.0,84307.0,0.23722822]
[1744997521448,0.00557249,84308.0,84307.0,0.24908963]
[1744997521649,0.23722022,84310.0,84307.0,0.24908963]
[1744997521890,0.00557249,84309.0,84308.0,0.23722462]
[1744997522281,0.24279533,84309.0,84307.0,0.24908963]
[1744997522460,0.00557249,84309.0,84308.0,0.23722541]
[1744997522660,0.00557249,84309.0,84307.0,0.24908963]
[1744997525292,0.24279581,84309.0,84307.0,0.24908944]
[1744997525500,0.00557249,84309.0,84307.0,0.24908944]
[1744997526357,0.00557249,84309.0,84307.0,0.05547109]
[1744997526555,0.00557249,84309.0,84307.0,0.0673325]
[1744997530776,0.24279571,84309.0,84307.0,0.0673325]
[1744997530977,0.00557249,84309.0,84308.0,0.23722541]
[1744997531298,0.00557249,84309.0,84307.0,0.01186141]
[1744997531637,0.24279562,84309.0,84307.0,0.01186141]
[1744997531842,0.00557249,84309.0,84307.0,0.24908735]
[1744997532052,0.24279524,84309.0,84307.0,0.24908735]
[1744997532253,0.24279524,84309.0,84307.0,0.01186141]
[1744997532877,0.00557249,84309.0,84308.0,0.34]
[1744997533095,0.23719184,84320.0,84317.0,0.01186]
[1744997533320,0.23719839,84318.0,84315.0,0.24906373]
[1744997533798,0.23719839,84318.0,84316.0,0.23720259]
[1744997534003,0.2371964,84319.0,84316.0,0.24906273]
[1744997534243,0.00557464,84317.0,84316.0,0.24906273]
[1744997534431,0.24905612,84319.0,84316.0,0.24906273]
[1744997534589,0.00557464,84317.0,84316.0,0.24906273]
[1744997534769,0.24905612,84319.0,84316.0,0.24906273]
[1744997534973,0.00557464,84317.0,84316.0,0.24906273]
[1744997535376,0.24905612,84319.0,84316.0,0.24906273]
[1744997535936,0.00557464,84318.0,84316.0,0.24906273]
[1744997537659,0.00557464,84318.0,84317.0,0.23720009]
[1744997538239,0.24905617,84320.0,84317.0,0.23720009]
[1744997538983,0.00557464,84319.0,84317.0,0.23720009]
[1744997539338,0.00557464,84319.0,84318.0,0.23719727]
[1744997543897,0.00557464,84319.0,84317.0,0.23719944]
[1744997544094,0.2427698,84319.0,84316.0,0.24906273]
[1744997544315,0.2427698,84319.0,84317.0,0.23719957]
[1744997544523,0.00557464,84319.0,84318.0,0.23719727]
[1744997545440,0.00557464,84319.0,84317.0,0.23719957]
[1744997546148,0.00557464,84319.0,84318.0,0.23719727]
[1744997546727,0.00557464,84319.0,84317.0,0.23719957]
[1744997548178,0.00557464,84319.0,84318.0,0.23719727]
[1744997549418,0.00557464,84319.0,84318.0,0.57719727]
[1744997549567,0.00557464,84319.0,84318.0,0.60970352]
[1744997549770,0.0493,84332.0,84331.0,0.23716071]
[1744997549978,0.0493,84340.0,84332.0,0.23715789]
[1744997550377,0.0472,84345.0,84332.0,0.23715789]
[1744997550576,0.000842,84350.0,84332.0,0.6966058]
[1744997550778,0.000842,84350.0,84332.0,0.7423058]
[1744997550986,0.0008875,84333.0,84332.0,0.7423058]
[1744997551790,0.000842,84350.0,84343.0,0.23712696]
[1744997551991,0.00088755,84344.0,84343.0,0.74474566]
[1744997552351,0.00088755,84344.0,84343.0,0.74237487]
[1744997555156,0.00088755,84344.0,84343.0,0.7543576]
[1744997563077,0.00088755,84344.0,84343.0,0.7553576]
[1744997565398,0.00088755,84344.0,84343.0,0.8861576]
[1744997566901,0.000842,84350.0,84349.0,0.5771101]
[1744997567103,0.000842,84350.0,84349.0,1.10795801]
[1744997571201,0.000842,84350.0,84349.0,1.10895801]
[1744997571413,0.000842,84350.0,84349.0,1.10795801]
[1744997571627,0.000842,84350.0,84349.0,1.10895801]
[1744997580822,0.000842,84350.0,84349.0,1.23365801]
[1744997581077,0.000842,84350.0,84349.0,1.10895801]
[1744997581878,0.000842,84350.0,84349.0,1.10795801]
[1744997586221,0.000842,84350.0,84349.0,1.21889886]
[1744997586694,0.000842,84350.0,84349.0,2.26284086]
[1744997586993,0.000842,84350.0,84349.0,2.04038086]
[1744997587198,0.000842,84350.0,84349.0,1.70639586]
[1744997588433,0.000842,84350.0,84349.0,2.92515586]
[1744997593387,0.000842,84350.0,84349.0,2.87655586]
[1744997593593,0.000842,84350.0,84349.0,2.56313186]
[1744997600200,0.000842,84350.0,84349.0,4.13553686]
[1744997600602,0.000842,84350.0,84349.0,4.19463686]
[1744997601413,0.000842,84350.0,84349.0,4.17609986]
[1744997601637,0.000842,84350.0,84349.0,3.81046786]
[1744997601795,0.000842,84350.0,84349.0,3.65531286]
[1744997603245,0.000842,84350.0,84349.0,3.26406986]
[1744997605185,0.000842,84350.0,84349.0,3.07717607]
[1744997606251,0.000842,84350.0,84349.0,3.02685607]
[1744997606970,0.000842,84350.0,84349.0,2.89836607]
[1744997607650,0.000842,84350.0,84349.0,2.78042207]
[1744997607829,0.000842,84350.0,84349.0,2.73362207]
[1744997612244,0.000842,84350.0,84349.0,2.35028107]
[1744997612716,0.000842,84350.0,84349.0,2.82484307]
[1744997613697,0.000842,84350.0,84349.0,2.78660307]
[1744997615485,0.000842,84350.0,84349.0,2.73774007]
[1744997620397,0.000842,84350.0,84349.0,2.60149707]
[1744997620523,0.000842,84350.0,84349.0,2.54239707]
[1744997627592,0.000842,84350.0,84349.0,2.60149707]
[1744997628986,0.000842,84350.0,84349.0,2.60249707]
[1744997631192,0.000842,84350.0,84349.0,2.60149707]
[1744997633130,0.000842,84350.0,84349.0,3.34908707]
[1744997633348,0.000842,84350.0,84349.0,3.30359707]
[1744997637536,0.000842,84350.0,84349.0,3.07171407]
[1744997637741,0.000842,84350.0,84349.0,2.58095007]
[1744997641659,0.000842,84350.0,84349.0,2.57995007]
[1744997641856,0.000842,84350.0,84349.0,2.52085007]
[1744997646075,0.000842,84350.0,84349.0,2.57995007]
[1744997646517,1e-08,84354.0,84353.0,0.5916397]
[1744997646883,0.0464,84371.0,84366.0,0.57706232]
[1744997647079,0.0464,84371.0,84366.0,1.23911023]
[1744997647280,0.001842,84367.0,84366.0,1.23911023]
[1744997648915,0.001842,84367.0,84366.0,0.90819458]
[1744997650961,0.001842,84367.0,84366.0,1.24819458]
[1744997651173,1e-08,84367.0,84366.0,1.26273543]
[1744997651524,0.0495,84376.0,84375.0,0.23703703]
[1744997651806,0.04995158,84376.0,84375.0,0.358855]